bitfinex-derivatives/quotes_SOLF0:USTF0_20260310
["timestamp","ask_amount","ask_price","bid_price","bid_amount"]
[1773120252988,4.77789945,86.58,86.543,3.73898386]
[1773120253183,7.38040491,86.58,86.53,8.51688331]
[1773120253489,4.77789945,86.57,86.53,3.73898386]
[1773120253988,2.60250546,86.579,86.532,3.73898386]
[1773120254985,2.68187517,86.589,86.543,14.13698386]
[1773120255180,2.68187517,86.589,86.544,3.73898386]
[1773120256584,4.77789945,86.58,86.533,10.4]
[1773120257089,4.77789945,86.58,86.533,14.13898386]
[1773120257290,4.77789945,86.58,86.534,3.73898386]
[1773120258087,2.68187517,86.589,86.534,3.73898386]
[1773120259393,3.14947473,86.587,86.534,3.73898386]
[1773120260488,3.14861878,86.585,86.534,3.73898386]
[1773120262382,3.14861878,86.585,86.537,3.73898386]
[1773120263389,3.14861878,86.585,86.539,3.73898386]
[1773120264992,3.14861878,86.585,86.541,3.73898386]
[1773120265588,3.14861878,86.585,86.543,3.73898386]
[1773120265894,3.13726021,86.598,86.551,3.73898386]
[1773120266794,8.43413291,86.61,86.561,3.73898386]
[1773120266795,7.91858115,86.61,86.561,3.73898386]
[1773120267694,3.1406817,86.609,86.57,10.395]
[1773120267991,3.1406817,86.609,86.571,3.73898386]
[1773120268392,3.1406817,86.609,86.551,3.73898386]
[1773120268598,4.77789945,86.6,86.562,14.13498386]
[1773120269389,3.05682697,86.599,86.562,3.73898386]
[1773120270895,3.05682697,86.599,86.563,3.73898386]
[1773120271194,3.04472282,86.61,86.563,3.73898386]
[1773120271797,3.04472282,86.623,86.572,3.73898386]
[1773120273598,3.04472282,86.623,86.575,3.73898386]
[1773120274104,4.77789945,86.62,86.581,3.94002217]
[1773120274295,3.21099911,86.619,86.581,3.94002217]
[1773120275496,3.21099911,86.619,86.582,10.394]
[1773120276795,4.77789945,86.62,86.583,3.94002217]
[1773120276995,13.21203236,86.63,86.583,3.94002217]
[1773120277195,8.43413291,86.629,86.583,3.94002217]
[1773120277398,8.43413291,86.628,86.583,3.94002217]
[1773120277599,8.43413291,86.629,86.583,3.94002217]
[1773120277901,8.43413291,86.628,86.583,3.94002217]
[1773120278102,3.76280128,86.628,86.583,3.94002217]
[1773120278298,4.77789945,86.62,86.583,3.94002217]
[1773120278703,4.77789945,86.61,86.583,3.94002217]
[1773120278902,8.54070073,86.62,86.583,3.94002217]
[1773120281002,3.76280128,86.599,86.556,3.94002217]
[1773120281400,3.76280128,86.599,86.521,3.94002217]
[1773120281401,4.77789945,86.58,86.521,3.94002217]
[1773120281604,4.77789945,86.58,86.531,3.94002217]
[1773120281805,3.76280128,86.599,86.531,3.94002217]
[1773120282004,4.77789945,86.58,86.531,3.94002217]
[1773120282402,4.77789945,86.58,86.544,10.398]
[1773120282598,4.77789945,86.59,86.544,10.398]
[1773120282805,4.77789945,86.59,86.544,14.33802217]
[1773120283205,4.77789945,86.59,86.545,3.94002217]
[1773120284002,3.76280128,86.589,86.545,3.94002217]
[1773120284207,3.76280128,86.589,86.551,3.94002217]
[1773120284608,10.6833338,86.618,86.55,10.398]
[1773120284609,8.43413291,86.605,86.564,3.94002217]
[1773120284803,8.54070073,86.61,86.564,3.94002217]
[1773120285007,3.76280128,86.61,86.564,3.94002217]
[1773120285508,3.76280128,86.609,86.564,3.94002217]
[1773120290813,8.43413291,86.609,86.567,3.94002217]
[1773120291111,3.76280128,86.618,86.567,3.94002217]
[1773120291710,4.77789945,86.61,86.567,3.94002217]
[1773120292508,4.77789945,86.61,86.569,3.94002217]
[1773120293208,3.76280128,86.618,86.569,3.94002217]
[1773120293414,3.76280128,86.618,86.58,10.394]
[1773120294608,3.76280128,86.618,86.574,3.94002217]
[1773120295304,4.77807588,86.61,86.575,10.395]
[1773120295613,3.76280128,86.618,86.575,10.395]
[1773120296009,3.76280128,86.618,86.578,3.65019061]
[1773120297712,3.7936153,86.617,86.578,3.65019061]
[1773120297913,4.77807588,86.61,86.551,3.65019061]
[1773120298819,4.77807588,86.61,86.571,10.395]
[1773120299016,4.77807588,86.61,86.571,14.04519061]
[1773120299617,3.7936153,86.617,86.576,3.65019061]
[1773120300616,8.51135957,86.623,86.581,3.65019061]
[1773120300821,14.57118313,86.64,86.581,3.65019061]
[1773120300822,12.30497487,86.639,86.581,3.65019061]
[1773120301017,3.7936153,86.639,86.581,3.65019061]
[1773120301217,3.7936153,86.629,86.588,3.65019061]
[1773120301521,4.77807588,86.61,86.571,3.65019061]
[1773120301915,4.77807588,86.61,86.574,3.65019061]
[1773120302123,8.57169118,86.61,86.574,3.65019061]
[1773120303322,4.77807588,86.6,86.561,3.65019061]
[1773120304818,3.84804482,86.599,86.561,3.65019061]
[1773120306315,4.77807588,86.6,86.561,3.65019061]
[1773120306520,8.6261207,86.6,86.561,3.65019061]
[1773120307820,8.6261207,86.6,86.563,14.25123275]
[1773120308221,3.84804482,86.599,86.523,3.85523275]
[1773120308421,3.84804482,86.599,86.522,21.1704598]
[1773120308422,4.77807588,86.59,86.547,3.85523275]
[1773120308627,8.6261207,86.59,86.547,3.85523275]
[1773120309028,4.77807588,86.6,86.561,3.85523275]
[1773120309222,4.77807588,86.6,86.494,30.23796881]
[1773120309223,4.77807588,86.65,86.59,4.77807588]
[1773120309424,12.84849685,86.658,86.611,10.39]
[1773120309630,12.84849685,86.658,86.62,4.77807588]
[1773120310024,12.84849685,86.658,86.611,10.39]
[1773120313828,12.60177401,86.687,86.577,34.65]
[1773120314024,12.60177401,86.687,86.64,4.77807588]
[1773120314927,12.60177401,86.687,86.65,4.77807588]
[1773120315231,12.60177401,86.687,86.64,4.77807588]
[1773120315433,12.60177401,86.699,86.65,4.77807588]
[1773120315632,12.60177401,86.699,86.645,10.386]
[1773120317133,12.60177401,86.699,86.64,4.77807588]
[1773120317134,10.38,86.697,86.64,4.77807588]
[1773120317335,12.74260857,86.696,86.64,4.77807588]
[1773120317737,4.77807588,86.68,86.63,4.77807588]
[1773120318035,12.80386457,86.679,86.63,4.77807588]
[1773120320031,12.80386457,86.679,86.625,10.389]
[1773120321633,12.80121746,86.669,86.615,10.39]
[1773120323841,12.80121746,86.669,86.624,10.389]
[1773120325646,12.80121746,86.669,86.63,4.77807588]
[1773120325841,12.80121746,86.669,86.631,10.388]
[1773120327645,12.80121746,86.669,86.63,4.77807588]
[1773120329249,12.80121746,86.669,86.62,4.77807588]
[1773120329448,12.80121746,86.669,86.627,10.388]
[1773120332351,12.80121746,86.669,86.632,10.388]
[1773120333848,10.38,86.697,86.64,15.16507588]
[1773120334054,12.80650681,86.696,86.66,4.77807588]
[1773120334347,12.80650681,86.696,86.604,34.65]
[1773120334348,12.80650681,86.696,86.65,4.77807588]
[1773120334748,12.80650681,86.696,86.657,10.385]
[1773120336452,12.79387548,86.708,86.665,10.384]
[1773120336652,12.79387548,86.729,86.68,4.77807588]
[1773120336851,4.77807588,86.72,86.619,34.65]
[1773120337156,12.79387548,86.719,86.67,4.77807588]
[1773120337556,12.79387548,86.719,86.672,10.383]
[1773120338059,12.79387548,86.719,86.68,4.77807588]
[1773120338356,12.79350538,86.709,86.65,4.77807588]
[1773120338760,12.79350538,86.709,86.661,10.384]
[1773120342461,10.379,86.708,86.651,10.385]
[1773120342661,12.78678047,86.699,86.651,10.385]
[1773120344458,12.78678047,86.699,86.659,10.384]
[1773120344658,12.78427143,86.711,86.66,4.77807588]
[1773120345359,12.78427143,86.709,86.65,4.77807588]
[1773120345760,12.78427143,86.709,86.664,10.384]
[1773120345967,12.78427143,86.709,86.66,4.77807588]
[1773120346262,12.78427143,86.709,86.67,4.77807588]
[1773120347364,12.78427143,86.709,86.671,10.383]
[1773120347864,12.7867183,86.719,86.671,10.383]
[1773120351567,12.7867183,86.719,86.67,4.77807588]
[1773120351765,12.7867183,86.719,86.663,10.384]
[1773120352564,12.7867183,86.719,86.671,10.383]
[1773120353068,12.7867183,86.719,86.67,4.77807588]
[1773120353671,12.7867183,86.719,86.67,4.76625554]
[1773120353867,12.7867183,86.719,86.682,10.382]
[1773120354072,10.84159183,86.719,86.682,10.382]
[1773120358371,10.84159183,86.719,86.674,10.383]
[1773120358671,10.84159183,86.719,86.67,4.76625554]
[1773120360473,10.84159183,86.719,86.681,10.382]
[1773120360669,11.8145432,86.732,86.68,4.76625554]
[1773120360874,11.8145432,86.732,86.69,4.76625554]
[1773120361770,11.8145432,86.732,86.68,4.76625554]
[1773120361969,11.8145432,86.732,86.69,4.76625554]
[1773120362366,11.8145432,86.732,86.699,10.38]
[1773120362571,11.81239704,86.745,86.69,4.76625554]
[1773120362971,11.81239704,86.745,86.706,10.379]
[1773120363170,11.81239704,86.745,86.658,34.65]
[1773120363474,11.81239704,86.745,86.69,4.76625554]
[1773120363872,11.81122034,86.739,86.693,10.38]
[1773120364676,11.81122034,86.729,86.674,10.383]
[1773120364873,11.81122034,86.729,86.67,4.76625554]
[1773120365178,11.81122034,86.729,86.681,10.382]
[1773120365878,4.76625554,86.72,86.681,10.382]
[1773120366079,11.83166514,86.719,86.681,10.382]
[1773120368082,11.83166514,86.719,86.689,10.381]
[1773120370378,11.83520096,86.731,86.689,10.381]
[1773120371683,11.83520096,86.731,86.692,10.381]
[1773120372288,11.83520096,86.731,86.7,10.38]
[1773120373885,11.71433093,86.749,86.7,10.38]
[1773120374082,11.71433093,86.749,86.7,15.14625554]
[1773120374884,11.71433093,86.747,86.7,10.38]
[1773120375079,4.76625554,86.74,86.691,10.381]
[1773120375284,11.71433093,86.739,86.691,10.381]
[1773120375791,11.71433093,86.729,86.681,10.382]
[1773120378285,11.71433093,86.729,86.68,4.76625554]
[1773120379980,11.71433093,86.729,86.67,4.76625554]
[1773120380182,11.71433093,86.729,86.68,4.76625554]
[1773120380591,11.72337421,86.749,86.69,4.76625554]
[1773120380791,11.72337421,86.749,86.701,10.379]
[1773120384794,11.72337421,86.749,86.691,10.381]
[1773120385000,11.71723785,86.719,86.66,4.76625554]
[1773120385302,11.71723785,86.719,86.67,4.76625554]
[1773120386406,11.71723785,86.719,86.68,10.382]
[1773120388809,11.71723785,86.719,86.67,15.14925554]
[1773120389903,11.71723785,86.719,86.67,10.383]
[1773120390205,11.748362,86.718,86.67,10.383]
[1773120391806,4.76625554,86.71,86.67,10.383]
[1773120392007,11.73790196,86.709,86.677,10.382]
[1773120399116,11.73790196,86.709,86.668,10.383]
[1773120400415,11.73790196,86.709,86.66,10.384]
[1773120400611,4.76625554,86.68,86.637,14.23180822]
[1773120400818,4.76625554,86.68,86.599,20.784]
[1773120400819,10.76054006,86.724,86.65,4.76625554]
[1773120401109,4.76625554,86.7,86.66,10.384]
[1773120402606,4.76625554,86.7,86.641,10.387]
[1773120402816,5.81776188,86.699,86.64,4.76625554]
[1773120403210,5.81776188,86.699,86.661,10.384]
[1773120406114,5.81236274,86.719,86.669,10.383]
[1773120406612,5.81236274,86.719,86.67,4.76625554]
[1773120407020,5.81236274,86.719,86.669,10.383]
[1773120415825,4.767134,86.67,86.622,40.32807726]
[1773120416013,42.1136677,86.753,86.622,40.32807726]
[1773120416014,4.767134,86.65,86.622,40.32807726]
[1773120416218,4.767134,86.66,86.622,40.32807726]
[1773120416518,4.767134,86.67,86.622,40.32807726]
[1773120416924,4.767134,86.69,86.631,40.32507381]
[1773120420520,4.767134,86.69,86.641,40.47098025]
[1773120420930,4.767134,86.7,86.651,40.46919295]
[1773120421134,4.767134,86.71,86.651,40.46919295]
[1773120421335,8.50416477,86.709,86.651,40.46919295]
[1773120421631,8.50416477,86.708,86.651,40.46919295]
[1773120421831,8.50416477,86.707,86.661,40.46919295]
[1773120422131,8.50416477,86.706,86.661,40.46919295]
[1773120422427,8.50416477,86.705,86.661,40.46919295]
[1773120422627,8.50416477,86.704,86.661,40.46919295]
[1773120422829,8.50416477,86.703,86.661,40.46919295]
[1773120423031,8.50416477,86.702,86.661,40.46919295]
[1773120423230,4.767134,86.71,86.661,40.46919295]
[1773120423431,9.17362898,86.709,86.661,40.46919295]
[1773120423634,9.17362898,86.708,86.661,40.46919295]
[1773120423831,9.17362898,86.707,86.661,40.46919295]
[1773120424023,9.17362898,86.706,86.661,40.46919295]
[1773120424222,9.17362898,86.705,86.661,40.46919295]
[1773120424428,10.377,86.719,86.671,40.49662422]
[1773120424627,9.17406921,86.718,86.671,40.49662422]
[1773120424827,9.17406921,86.717,86.671,40.49662422]
[1773120425132,9.17406921,86.716,86.671,40.49662422]
[1773120425333,9.17406921,86.715,86.671,40.49662422]
[1773120425533,9.17406921,86.714,86.671,40.49662422]
[1773120425833,9.17406921,86.713,86.671,40.49662422]
[1773120426035,9.17406921,86.712,86.671,40.49662422]
[1773120426232,9.17406921,86.711,86.671,40.49662422]
[1773120426430,9.17406921,86.71,86.671,40.49662422]
[1773120426625,9.17406921,86.709,86.671,40.49662422]
[1773120426924,4.767134,86.7,86.659,40.52798332]
[1773120427130,9.17406921,86.699,86.659,40.52798332]
[1773120427330,9.17406921,86.698,86.659,40.52798332]
[1773120427525,9.17406921,86.698,86.646,10.386]
[1773120427526,4.767134,86.67,86.619,40.52661774]
[1773120427736,4.767134,86.66,86.619,40.52661774]
[1773120428232,9.16324299,86.659,86.619,40.52661774]
[1773120428431,9.16324299,86.658,86.619,40.52661774]
[1773120428634,4.767134,86.66,86.619,40.52661774]
[1773120428835,9.15873631,86.659,86.619,40.52661774]
[1773120429034,9.15873631,86.658,86.619,40.52661774]
[1773120429234,4.767134,86.66,86.619,40.52661774]
[1773120430839,4.767134,86.67,86.619,40.52661774]
[1773120431135,4.767134,86.66,86.619,40.52661774]
[1773120435231,9.13947923,86.669,86.619,40.52661774]
[1773120435437,4.767134,86.67,86.619,40.52661774]
[1773120435834,4.767134,86.66,86.619,40.52661774]
[1773120437138,4.767134,86.68,86.623,40.66965121]
[1773120437732,4.767134,86.67,86.628,40.66965121]
[1773120438735,4.767134,86.66,86.628,40.66965121]
[1773120440439,9.1365254,86.681,86.606,40.69607992]
[1773120440637,4.767134,86.64,86.606,40.69607992]
[1773120440945,4.767134,86.65,86.606,40.69607992]
[1773120441143,4.767134,86.66,86.606,40.69607992]
[1773120441546,9.1365254,86.659,86.606,40.69607992]
[1773120441748,4.767134,86.65,86.606,40.69607992]
[1773120442247,4.767134,86.66,86.606,40.69607992]
[1773120442646,13.9036594,86.66,86.606,40.69607992]
[1773120442843,4.767134,86.66,86.606,40.69607992]
[1773120443044,13.9036594,86.66,86.606,40.69607992]
[1773120443244,4.767134,86.66,86.606,40.69607992]
[1773120443444,13.9036594,86.66,86.606,40.69607992]
[1773120443646,10.385,86.658,86.606,40.69607992]
[1773120444046,4.767134,86.65,86.606,40.69607992]
[1773120444745,10.384,86.668,86.611,40.70616328]
[1773120444947,9.1365254,86.667,86.611,40.70616328]
[1773120445246,9.1365254,86.666,86.611,40.70616328]
[1773120445546,9.1365254,86.665,86.611,40.70616328]
[1773120445742,9.1365254,86.667,86.611,40.70616328]
[1773120445946,9.1365254,86.666,86.621,40.70565922]
[1773120446245,9.1365254,86.667,86.621,40.70565922]
[1773120446443,4.767134,86.66,86.621,40.70565922]
[1773120447749,9.1365254,86.678,86.621,40.70565922]
[1773120447750,4.767134,86.65,86.621,40.70565922]
[1773120447942,4.767134,86.65,86.601,40.69730421]
[1773120449643,4.767134,86.64,86.601,40.69730421]
[1773120449845,4.767134,86.66,86.601,40.69730421]
[1773120450251,9.1365254,86.679,86.612,40.69820926]
[1773120450547,9.1365254,86.678,86.612,40.69820926]
[1773120450750,4.767134,86.66,86.612,40.69820926]
[1773120451449,10.385,86.659,86.612,40.69820926]
[1773120452051,4.767134,86.66,86.612,40.69820926]
[1773120452749,15.151134,86.66,86.612,40.69820926]
[1773120453750,10.385,86.652,86.612,40.69820926]
[1773120453951,4.767134,86.64,86.612,40.69820926]
[1773120454156,4.767134,86.64,86.599,40.73244817]
[1773120454357,4.767134,86.65,86.599,40.73244817]
[1773120455153,14.2444451,86.686,86.599,40.73244817]
[1773120455154,4.767134,86.64,86.599,40.73244817]
[1773120455958,14.2444451,86.684,86.538,34.65]
[1773120455959,4.767134,86.66,86.611,40.69744326]
[1773120457160,10.384,86.667,86.611,40.69744326]
[1773120457764,9.1365254,86.674,86.62,45.46413332]
[1773120458059,4.767134,86.68,86.62,45.46413332]
[1773120458252,9.1365254,86.679,86.62,45.46413332]
[1773120458456,10.72874238,86.691,86.561,34.65]
[1773120458457,4.767134,86.66,86.607,40.69791702]
[1773120459266,4.767134,86.66,86.609,40.69748814]
[1773120460268,4.767134,86.66,86.611,40.70395609]
[1773120460660,9.1365254,86.662,86.611,40.70395609]
[1773120460860,9.1365254,86.669,86.611,40.70395609]
[1773120461054,9.1365254,86.668,86.611,40.70395609]
[1773120461261,9.1365254,86.667,86.611,40.70395609]
[1773120461461,9.1365254,86.666,86.611,40.70395609]
[1773120461661,9.1365254,86.665,86.611,40.70395609]
[1773120461861,9.1365254,86.664,86.611,40.70395609]
[1773120462064,9.1365254,86.663,86.611,40.70395609]
[1773120462263,9.1365254,86.662,86.621,40.70121019]
[1773120462562,4.767134,86.67,86.621,40.70121019]
[1773120462757,9.1365254,86.669,86.621,40.70121019]
[1773120462955,10.384,86.666,86.621,40.70121019]
[1773120463163,4.767134,86.66,86.621,40.70121019]
[1773120464666,8.948986,86.659,86.608,40.68264591]
[1773120464866,8.948986,86.658,86.608,40.68264591]
[1773120465064,4.767134,86.66,86.608,40.68264591]
[1773120466163,4.767134,86.66,86.611,40.67359673]
[1773120466564,4.767134,86.66,86.611,51.06359673]
[1773120466961,4.767134,86.66,86.612,40.67359673]
[1773120467162,4.767134,86.67,86.612,40.67359673]
[1773120467366,8.95509448,86.669,86.612,40.67359673]
[1773120467566,8.95509448,86.668,86.612,40.67359673]
[1773120467769,8.95509448,86.667,86.612,40.67359673]
[1773120468069,8.95509448,86.666,86.612,40.67359673]
[1773120468274,4.767134,86.65,86.612,40.67359673]
[1773120468563,8.95509448,86.664,86.612,40.67359673]
[1773120468766,8.95509448,86.663,86.614,40.66877923]
[1773120468966,4.767134,86.66,86.614,40.66877923]
[1773120469168,8.95509448,86.659,86.614,40.66877923]
[1773120469368,8.95509448,86.658,86.614,40.66877923]
[1773120469570,8.95509448,86.657,86.614,40.66877923]
[1773120469768,8.95509448,86.656,86.614,40.66877923]
[1773120469972,8.96347026,86.655,86.601,40.63852826]
[1773120470159,4.767134,86.67,86.611,40.63852826]
[1773120470362,8.97015431,86.669,86.611,40.63852826]
[1773120470566,8.97015431,86.668,86.611,40.63852826]
[1773120470765,8.97015431,86.667,86.611,40.63852826]
[1773120471060,8.97015431,86.666,86.611,40.63852826]
[1773120471368,8.97015431,86.665,86.621,10.389]
[1773120471563,8.97015431,86.664,86.622,40.63804186]
[1773120471867,8.97015431,86.663,86.622,40.63804186]
[1773120472066,8.97015431,86.662,86.622,40.63804186]
[1773120472267,8.97015431,86.661,86.622,40.63804186]
[1773120472466,8.97015431,86.66,86.622,40.63804186]
[1773120472667,8.97015431,86.659,86.622,40.63804186]
[1773120472865,8.97015431,86.658,86.622,40.63804186]
[1773120473061,8.97015431,86.657,86.622,40.63804186]
[1773120473268,8.97015431,86.656,86.622,40.63804186]
[1773120473468,8.97015431,86.655,86.622,40.63804186]
[1773120473672,8.97015431,86.654,86.622,40.63804186]
[1773120473871,8.97015431,86.653,86.622,40.63804186]
[1773120474069,8.97015431,86.652,86.624,40.63379657]
[1773120474367,4.767134,86.67,86.624,40.63379657]
[1773120474572,8.98624552,86.669,86.624,40.63379657]
[1773120474774,8.98624552,86.668,86.624,40.63379657]
[1773120474973,10.72874238,86.672,86.624,40.63379657]
[1773120474974,4.767134,86.66,86.624,40.63379657]
[1773120475176,8.98624552,86.659,86.624,40.63379657]
[1773120475365,8.98624552,86.658,86.624,40.63379657]
[1773120475676,8.98624552,86.657,86.624,40.63379657]
[1773120475975,8.98624552,86.656,86.624,40.63379657]
[1773120476274,8.98624552,86.655,86.624,40.63379657]
[1773120476474,8.98624552,86.654,86.624,40.63379657]
[1773120476776,8.98624552,86.653,86.624,40.63379657]
[1773120477076,4.77370897,86.67,86.624,40.63379657]
[1773120477278,8.98648537,86.669,86.624,40.63379657]
[1773120477576,8.98648537,86.668,86.624,40.63379657]
[1773120477773,8.98648537,86.667,86.624,40.63379657]
[1773120477979,8.98648537,86.666,86.624,40.63379657]
[1773120478179,8.98648537,86.665,86.624,40.63379657]
[1773120478478,8.98648537,86.664,86.626,40.63442817]
[1773120478681,8.98648537,86.663,86.626,40.63442817]
[1773120478870,8.98648537,86.662,86.626,40.63442817]
[1773120479075,8.98648537,86.661,86.626,40.63442817]
[1773120479275,8.98648537,86.66,86.626,40.63442817]
[1773120479477,8.98648537,86.659,86.626,40.63442817]
[1773120479671,8.98648537,86.658,86.626,40.63442817]
[1773120479883,8.98648537,86.657,86.626,40.63442817]
[1773120480080,8.98648537,86.656,86.626,40.63442817]
[1773120480382,8.98648537,86.655,86.626,40.63442817]
[1773120480576,4.77370897,86.67,86.626,40.63442817]
[1773120480774,8.96634337,86.669,86.626,40.63442817]
[1773120481084,8.96634337,86.668,86.626,40.63442817]
[1773120481284,8.96634337,86.667,86.626,40.63442817]
[1773120481480,8.96634337,86.666,86.628,40.68970649]
[1773120481782,8.96634337,86.665,86.628,40.68970649]
[1773120481981,161.345,86.767,86.632,40.69805962]
[1773120481982,8.54233472,86.682,86.632,40.69805962]
[1773120482176,8.54233472,86.681,86.632,40.69805962]
[1773120482378,8.54233472,86.68,86.632,40.69805962]
[1773120482577,4.77370897,86.67,86.618,40.69805962]
[1773120482884,8.54147594,86.678,86.631,40.69775545]
[1773120483183,4.77370897,86.69,86.631,40.69775545]
[1773120483384,8.53970766,86.689,86.631,40.69775545]
[1773120483684,8.53970766,86.688,86.631,40.69775545]
[1773120483876,8.53970766,86.687,86.631,40.69775545]
[1773120484081,8.53970766,86.686,86.631,40.69775545]
[1773120484281,8.53970766,86.685,86.631,40.69775545]
[1773120484482,4.77370897,86.68,86.637,40.70737748]
[1773120484981,4.77370897,86.69,86.637,40.70737748]
[1773120485186,8.5374743,86.689,86.637,40.70737748]
[1773120485388,8.5374743,86.688,86.637,40.70737748]
[1773120485579,8.5374743,86.687,86.637,40.70737748]
[1773120485776,8.5374743,86.686,86.637,40.70737748]
[1773120485979,8.5374743,86.685,86.637,40.70737748]
[1773120486180,8.5374743,86.684,86.637,40.70737748]
[1773120486381,8.5374743,86.683,86.642,40.70357281]
[1773120486576,4.77370897,86.69,86.642,40.70357281]
[1773120486785,8.53394954,86.689,86.642,40.70357281]
[1773120486986,4.77370897,86.69,86.64,4.77370897]
[1773120486987,8.53394954,86.688,86.644,40.70329661]
[1773120487185,4.77370897,86.69,86.644,40.70329661]
[1773120487384,8.53179433,86.689,86.644,40.70329661]
[1773120487586,8.53179433,86.688,86.644,40.70329661]
[1773120487786,4.77370897,86.69,86.644,40.70329661]
[1773120487987,8.53179433,86.689,86.644,40.70329661]
[1773120488189,4.77370897,86.69,86.644,40.70329661]
[1773120488387,8.53007398,86.689,86.646,40.71025872]
[1773120488691,4.77370897,86.69,86.646,40.71025872]
[1773120488895,8.53007329,86.689,86.646,40.71025872]
[1773120489083,4.77370897,86.69,86.646,40.71025872]
[1773120489286,8.5286556,86.689,86.646,40.71025872]
[1773120489890,4.77370897,86.67,86.631,40.71000035]
[1773120492590,4.77370897,86.66,86.613,40.70752935]
[1773120493987,4.77370897,86.65,86.613,40.70752935]
[1773120495898,4.77370897,86.64,86.613,40.70752935]
[1773120496099,4.77370897,86.65,86.613,40.70752935]
[1773120500097,4.77370897,86.63,86.599,40.69120876]
[1773120500603,8.5286556,86.647,86.599,40.69120876]
[1773120500803,4.77370897,86.64,86.599,40.69120876]
[1773120504505,13.30236457,86.65,86.599,40.69120876]
[1773120504706,4.77370897,86.65,86.599,40.69120876]
[1773120504900,13.30236457,86.65,86.599,40.69120876]
[1773120505110,4.77370897,86.65,86.599,40.69120876]
[1773120505604,4.77370897,86.64,86.599,40.69120876]
[1773120506403,4.77370897,86.65,86.599,40.69120876]
[1773120508405,10.386,86.647,86.599,40.69120876]
[1773120508605,4.77370897,86.64,86.599,40.69120876]
[1773120510508,4.77370897,86.63,86.582,40.70442358]
[1773120511612,4.77370897,86.64,86.582,40.70442358]
[1773120512003,4.77370897,86.64,86.591,40.72391809]
[1773120512811,10.386,86.647,86.601,40.72391809]
[1773120513313,4.77370897,86.65,86.601,40.72391809]
[1773120513503,34.65,86.67,86.601,40.72391809]
[1773120513702,4.77370897,86.65,86.601,40.72391809]
[1773120514613,8.5286556,86.665,86.601,40.72391809]
[1773120514811,4.77370897,86.64,86.601,40.72391809]
[1773120518515,4.77370897,86.65,86.601,40.72391809]
[1773120519320,10.386,86.647,86.601,40.72391809]
[1773120520709,10.387,86.639,86.601,40.72391809]
[1773120522319,10.75647785,86.665,86.601,40.72391809]
[1773120522320,4.77370897,86.63,86.601,40.72391809]
[1773120523421,10.388,86.628,86.601,40.72391809]
[1773120523918,4.77370897,86.63,86.601,40.72391809]
[1773120524225,4.77370897,86.64,86.601,40.72391809]
[1773120524620,4.77370897,86.63,86.601,40.72391809]
[1773120525020,4.77370897,86.64,86.601,40.72391809]
[1773120526318,10.387,86.636,86.601,40.72391809]
[1773120527628,4.77370897,86.63,86.601,40.72391809]
[1773120530030,4.77370897,86.64,86.601,40.72391809]
[1773120531227,4.77370897,86.63,86.601,40.72391809]
[1773120531427,4.77370897,86.64,86.601,40.72391809]
[1773120533234,10.387,86.639,86.601,40.72391809]
[1773120533425,4.77370897,86.63,86.601,40.72391809]
[1773120534034,10.387,86.639,86.601,40.72391809]
[1773120535130,8.51265996,86.638,86.601,40.72391809]
[1773120535334,8.51265996,86.637,86.601,40.72391809]
[1773120535530,8.51265996,86.639,86.601,40.72391809]
[1773120536136,8.51265996,86.638,86.601,40.72391809]
[1773120536436,8.51265996,86.637,86.601,40.72391809]
[1773120536627,4.77370897,86.64,86.601,40.72391809]
[1773120536827,8.53348698,86.639,86.601,40.72391809]
[1773120537036,8.53348698,86.638,86.601,40.72391809]
[1773120537234,8.53348698,86.637,86.601,40.72391809]
[1773120537434,8.53348698,86.636,86.601,40.72391809]
[1773120537633,8.53348698,86.635,86.601,40.72391809]
[1773120537837,8.53831586,86.634,86.601,40.72391809]
[1773120538039,4.77617368,86.64,86.601,40.72391809]
[1773120538233,8.53831586,86.639,86.601,40.72391809]
[1773120538433,8.53831586,86.638,86.601,40.72391809]
[1773120538732,8.53831586,86.637,86.601,40.72391809]
[1773120538933,8.53831586,86.636,86.601,40.72391809]
[1773120539134,8.53831586,86.635,86.601,40.72391809]
[1773120539437,8.53831586,86.634,86.601,40.72391809]
[1773120539637,8.53831586,86.633,86.601,40.72391809]
[1773120539838,8.53831586,86.632,86.601,40.72391809]
[1773120540136,4.77617368,86.64,86.601,40.72391809]
[1773120540439,8.50872337,86.639,86.601,40.72391809]
[1773120540639,8.50872337,86.638,86.601,40.72391809]
[1773120540940,8.50872337,86.637,86.601,40.72391809]
[1773120541140,8.50872337,86.636,86.601,40.72391809]
[1773120541344,8.50872337,86.635,86.601,40.72391809]
[1773120541530,8.50872337,86.634,86.601,40.72391809]
[1773120541735,8.50872337,86.633,86.601,40.72391809]
[1773120541935,8.50872337,86.632,86.601,40.72391809]
[1773120542136,8.49415236,86.631,86.601,40.72391809]
[1773120542336,4.77617368,86.64,86.601,40.72391809]